fUSD/lending_fUSD_20260203
["ID","MTS","AMOUNT","RATE_DAILY","PERIOD"]
[404369565,1770081055808,-5888.0,0.00017935,2]
[404369566,1770081055816,-200.0,0.00017942,2]
[404369567,1770081055825,-500.0,0.00017972,2]
[404369568,1770081055834,-479.0,0.00017972,2]
[404369569,1770081055842,-155.65422092,0.00017972,2]
[404369570,1770081055851,-500.0,0.00017972,2]
[404369571,1770081055861,-570.0,0.00017972,2]
[404369572,1770081055870,-500.0,0.00017972,2]
[404369573,1770081055879,-691.0,0.00017972,2]
[404369574,1770081055888,-787.0,0.00017972,2]
[404369575,1770081055897,-500.0,0.00017972,2]
[404369576,1770081055906,-737.0,0.00017972,2]
[404369577,1770081055914,-250.0,0.00017972,2]
[404369578,1770081055924,-500.0,0.00017972,2]
[404369579,1770081055933,-500.0,0.00017972,2]
[404369580,1770081055943,-2028.0,0.00017972,2]
[404369581,1770081055954,-467.0,0.00017972,2]
[404369582,1770081055963,-500.0,0.00017972,2]
[404369583,1770081055973,-506.45210639,0.00017972,2]
[404369584,1770081055983,-565.0,0.00017972,2]
[404369585,1770081055993,-500.0,0.00017972,2]
[404369586,1770081056003,-500.0,0.00017972,2]
[404369587,1770081056013,-900.0,0.00017972,2]
[404369588,1770081056022,-500.0,0.00017972,2]
[404369589,1770081056031,-500.0,0.00017972,2]
[404369590,1770081056041,-2686.44423706,0.0001799,3]
[404369591,1770081056050,-151.0,0.00017997,2]
[404369592,1770081056059,-290.80518927,0.00017999,2]
[404369593,1770081056068,-300.0,0.00017999,2]
[404369594,1770081056077,-300.0,0.00017999,2]
[404369595,1770081056086,-666.0,0.00017999,2]
[404369596,1770081056095,-300.0,0.00017999,2]
[404369597,1770081056105,-300.0,0.00017999,2]
[404369598,1770081056114,-666.0,0.00017999,2]
[404369599,1770081056123,-300.0,0.00017999,2]
[404369600,1770081056133,-300.0,0.00017999,2]
[404369601,1770081056142,-300.0,0.00017999,2]
[404369602,1770081056152,-3253710.07704331,0.00018,2]
[404369603,1770081056435,-7963.66379406,0.00018,2]
[404369604,1770081056450,-993.34152341,0.00018,2]
[404369605,1770081056575,-706.74437068,0.00011453,2]
[404369606,1770081056595,-792.54,0.00011453,2]
[404369607,1770081056607,-957.36869265,0.00011453,2]
[404369608,1770081056619,-8927.62429113,0.00011453,2]
[404369609,1770081056628,-17543.21601852,0.00018,2]
[404369610,1770081056654,-3531.35,0.00018,2]
[404369611,1770081056940,-151.0,0.00010658,2]
[404369612,1770081056949,-14365.37378205,0.00018,2]
[404369613,1770081056960,-9681.83761796,0.00018,2]
[404369614,1770081056972,-5835.45242119,0.00018,2]
[404369615,1770081056983,-7903.0367327,0.00018,2]
[404369616,1770081056995,-894.11,0.00018,2]
[404369617,1770081057007,-1050.63047542,0.00018,2]
[404369618,1770081057020,-447.11875108,0.00018,2]
[404369619,1770081057064,-1422.85407488,0.00018,2]
[404369620,1770081057075,-308.67692456,0.00018,2]
[404369621,1770081057085,-1163.69555954,0.00018,2]
[404369622,1770081057096,-432.21802615,0.00018,2]
[404369623,1770081057157,-11384.27735446,0.00012742,2]
[404369624,1770081057167,-3518.18780986,0.00018,2]
[404369625,1770081057178,-3672.41280487,0.00018,2]
[404369626,1770081057408,-3066.04166222,8.974e-05,2]
[404369627,1770081057448,-3867.92667556,8.974e-05,2]
[404369628,1770081059213,2264.15664888,8.874e-05,2]
[404369629,1770081059239,10000.01,8.874e-05,2]
[404369630,1770081059266,10000.01,8.874e-05,2]
[404369631,1770081059293,10000.01,8.874e-05,2]
[404369632,1770081059317,10000.01,8.874e-05,2]
[404369633,1770081059341,10000.01,8.874e-05,2]
[404369634,1770081059366,10000.01,8.874e-05,2]
[404369635,1770081059391,10000.01,8.874e-05,2]
[404369636,1770081059415,10000.01,8.874e-05,2]
[404369637,1770081093467,4863.275,8.696e-05,2]
[404369638,1770081093649,412.939,8.696e-05,2]
[404369639,1770081121714,150.0,8.873e-05,2]
[404369640,1770081128785,4573.796,7.945e-05,2]
[404369641,1770081128807,10000.01,7.945e-05,2]
[404369642,1770081128829,10000.01,7.945e-05,2]
[404369643,1770081128851,780.822676,7.945e-05,2]
[404369644,1770081130153,151.0,8.871e-05,2]
[404369645,1770081130528,151.0,8.871e-05,2]
[404369646,1770081146927,196.16868908,8.847e-05,2]
[404369647,1770081148474,172.0,6.3e-07,2]
[404369651,1770081241522,300.0,8.873e-05,2]
[404369652,1770081243563,247.61984388,8.873e-05,2]
[404369653,1770081243673,218.06980481,8.873e-05,2]
[404369654,1770081243748,500.0,8.873e-05,2]
[404369655,1770081243860,500.0,8.873e-05,2]
[404369656,1770081243946,388.05409404,8.873e-05,2]
[404369657,1770081248395,405.29171856,8.873e-05,2]
[404369658,1770081301521,300.0,8.873e-05,2]
[404369659,1770081301560,1200.0,8.873e-05,2]
[404369660,1770081301599,300.0,8.873e-05,2]
[404369661,1770081301905,150.0,8.873e-05,2]
[404369662,1770081306474,-50000.0,8.874e-05,2]
[404369663,1770081307344,-50000.0,8.874e-05,2]
[404369664,1770081307740,-50000.0,8.874e-05,2]
[404369665,1770081308381,-50000.0,8.874e-05,2]
[404369666,1770081308744,-50000.0,8.874e-05,2]
[404369667,1770081310165,-50000.0,8.874e-05,2]
[404369668,1770081311390,-50000.0,8.874e-05,2]
[404369669,1770081311748,-50000.0,8.874e-05,2]
[404369670,1770081312141,-50000.0,8.874e-05,2]
[404369671,1770081312804,-50000.0,8.874e-05,2]
[404369672,1770081313017,600.0,8.873e-05,2]
[404369673,1770081313189,-50000.0,8.874e-05,2]
[404369674,1770081313835,-50000.0,8.874e-05,2]
[404369675,1770081314516,-50000.0,8.874e-05,2]
[404369676,1770081315182,-50000.0,8.874e-05,2]
[404369677,1770081315854,-50000.0,8.874e-05,2]
[404369678,1770081316523,-50000.0,8.874e-05,2]
[404369679,1770081317556,-50000.0,8.874e-05,2]
[404369680,1770081317712,-50000.0,8.874e-05,2]
[404369681,1770081318101,-50000.0,8.874e-05,2]
[404369682,1770081318731,-50000.0,8.874e-05,2]
[404369683,1770081319137,-50000.0,8.874e-05,2]
[404369684,1770081319526,-50000.0,8.874e-05,2]
[404369685,1770081320160,-50000.0,8.874e-05,2]
[404369686,1770081320818,-50000.0,8.874e-05,2]
[404369687,1770081321199,-50000.0,8.874e-05,2]
[404369688,1770081321851,-50000.0,8.874e-05,2]
[404369689,1770081322568,-50000.0,8.874e-05,2]
[404369690,1770081323248,-50000.0,8.874e-05,2]
[404369691,1770081323947,-50000.0,8.874e-05,2]
[404369692,1770081324869,-50000.0,8.874e-05,2]
[404369693,1770081325583,-50000.0,8.874e-05,2]
[404369694,1770081327149,-50000.0,8.874e-05,2]
[404369695,1770081328183,-50000.0,8.874e-05,2]
[404369696,1770081328746,-50000.0,8.874e-05,2]
[404369697,1770081329405,-50000.0,8.874e-05,2]
[404369698,1770081330201,-50000.0,8.874e-05,2]
[404369699,1770081330929,-50000.0,8.874e-05,2]
[404369700,1770081332031,-50000.0,8.874e-05,2]
[404369701,1770081332671,-50000.0,8.874e-05,2]
[404369702,1770081333298,-50000.0,8.874e-05,2]
[404369703,1770081333665,-50000.0,8.874e-05,2]
[404369704,1770081336336,-50000.0,8.874e-05,2]
[404369705,1770081337889,-50000.0,8.874e-05,2]
[404369707,1770081366878,3439.98317363,8.849e-05,2]
[404369708,1770081366900,2846.01682637,8.849e-05,2]
[404369709,1770081368684,7153.99317363,8.774e-05,2]
[404369710,1770081368712,2846.00682637,8.774e-05,2]
[404369711,1770081395000,1636.55284034,8.873e-05,3]
[404369712,1770081395041,1636.55284034,9.76e-05,3]
[404369713,1770081395094,1636.55284034,8.873e-05,3]
[404369714,1770081395138,1636.55284034,8.873e-05,3]
[404369715,1770081395181,1636.55284034,9.76e-05,3]
[404369716,1770081395228,1636.55284034,8.873e-05,3]
[404369717,1770081395292,1636.55284034,8.873e-05,3]
[404369718,1770081395356,1636.55284034,8.873e-05,3]
[404369719,1770081395415,1636.55284034,8.873e-05,3]
[404369720,1770081420482,2500.0,8.774e-05,2]
[404369721,1770081421739,300.0,8.873e-05,2]
[404369722,1770081481918,500.0,8.873e-05,2]
[404369723,1770081481974,500.0,8.873e-05,2]
[404369724,1770081482015,500.0,8.873e-05,2]
[404369725,1770081482067,500.0,8.873e-05,2]
[404369726,1770081482107,500.0,8.873e-05,2]
[404369727,1770081482149,500.0,8.873e-05,2]
[404369728,1770081482194,500.0,8.873e-05,2]
[404369729,1770081482232,150.0,8.873e-05,2]
[404369730,1770081482285,500.0,8.873e-05,2]
[404369731,1770081482330,204.00317363,8.873e-05,2]
[404369732,1770081482356,295.99682637,8.873e-05,2]
[404369733,1770081482399,500.0,8.873e-05,2]
[404369734,1770081482439,500.0,8.873e-05,2]
[404369735,1770081482478,500.0,8.873e-05,2]
[404369736,1770081482524,500.0,8.873e-05,2]
[404369737,1770081482567,500.0,8.873e-05,2]
[404369738,1770081482611,500.0,8.873e-05,2]
[404369739,1770081482652,500.0,8.873e-05,2]
[404369740,1770081482693,500.0,8.873e-05,2]
[404369741,1770081482740,544.93564335,8.873e-05,2]
[404369742,1770081482781,500.0,8.873e-05,2]
[404369743,1770081482833,500.0,8.873e-05,2]
[404369744,1770081482872,500.0,8.873e-05,2]
[404369745,1770081482910,500.0,8.873e-05,2]
[404369746,1770081482953,500.0,8.873e-05,2]
[404369747,1770081483004,500.0,8.873e-05,2]
[404369748,1770081483055,500.0,8.873e-05,2]
[404369749,1770081483096,500.0,8.873e-05,2]
[404369750,1770081483154,500.0,8.873e-05,2]
[404369753,1770081495926,500.0,8.873e-05,2]
[404369754,1770081495976,159.07753028,8.873e-05,2]
[404369755,1770081496003,340.92246972,8.873e-05,2]
[404369756,1770081496045,500.0,8.873e-05,2]
[404369757,1770081496086,500.0,8.873e-05,2]
[404369758,1770081496689,500.0,8.873e-05,2]
[404369759,1770081508414,500.0,8.873e-05,2]
[404369760,1770081508465,416.68172338,8.873e-05,2]
[404369761,1770081531355,452.12841822,8.873e-05,2]
[404369762,1770081541875,300.0,8.873e-05,2]
[404369863,1770081557773,1490.27738868,8.774e-05,2]
[404369864,1770081557797,1009.72261132,8.774e-05,2]
[404369878,1770081601569,300.0,8.873e-05,2]
[404369879,1770081601611,1200.0,8.873e-05,2]
[404369880,1770081609204,500.0,8.873e-05,2]
[404369881,1770081609261,500.0,8.873e-05,2]
[404369882,1770081609310,151.0,8.871e-05,2]
[404369883,1770081609376,500.0,8.873e-05,2]
[404369884,1770081609438,500.0,8.873e-05,2]
[404369885,1770081609501,263.38875609,8.873e-05,2]
[404369888,1770081616533,263.97,8.8e-05,2]
[404369889,1770081617748,-4736.04,8.874e-05,2]
[404369890,1770081620574,-5000.01,8.874e-05,2]
[404369891,1770081636945,10000.01,8.704e-05,2]
[404369892,1770081636967,10000.01,8.704e-05,2]
[404369893,1770081636989,10000.01,8.704e-05,2]
[404369894,1770081637010,10000.01,8.704e-05,2]
[404369895,1770081637031,10000.01,8.704e-05,2]
[404369896,1770081637052,10000.01,8.704e-05,2]
[404369897,1770081637075,10000.01,8.704e-05,2]
[404369898,1770081637096,10000.01,8.704e-05,2]
[404369899,1770081637118,10000.01,8.704e-05,2]
[404369900,1770081637139,5000.01,8.704e-05,2]
[404369901,1770081637163,5000.01,8.704e-05,2]
[404369902,1770081637183,715.41,8.704e-05,2]
[404369903,1770081661698,150.0,8.873e-05,2]
[404369935,1770081663325,300.0,8.873e-05,2]
[404369983,1770081680496,3834.6,8.774e-05,2]
[404369984,1770081680527,5000.01,8.774e-05,2]
[404369985,1770081680557,5000.01,8.774e-05,2]
[404369986,1770081680589,5000.01,8.774e-05,2]
[404369987,1770081680624,5000.01,8.774e-05,2]
[404369988,1770081680654,5000.01,8.774e-05,2]
[404369989,1770081680686,10000.01,8.774e-05,2]
[404369990,1770081680714,5000.01,8.774e-05,2]
[404369991,1770081680743,5000.01,8.774e-05,2]
[404369992,1770081680772,5000.01,8.774e-05,2]
[404369993,1770081680801,10000.01,8.774e-05,2]
[404369994,1770081680831,10000.01,8.774e-05,2]
[404369995,1770081680861,10000.01,8.774e-05,2]
[404369996,1770081680891,10000.01,8.774e-05,2]
[404369997,1770081680921,10000.01,8.774e-05,2]
[404369998,1770081680971,10000.01,8.774e-05,2]
[404369999,1770081681026,10000.01,8.774e-05,2]
[404370000,1770081681081,10000.01,8.774e-05,2]
[404370001,1770081681143,5000.01,8.774e-05,2]
[404370002,1770081682217,-1945.54101915,8.774e-05,2]
[404370003,1770081693509,3890.62,8.598e-05,2]
[404370004,1770081693689,330.351,8.598e-05,2]
[404370005,1770081694791,779.039,8.688e-05,2]
[404370006,1770081694815,2163.651,8.688e-05,2]
[404370007,1770081695890,-2811.74198371,8.774e-05,2]
[404370008,1770081695969,-10000.01,8.774e-05,2]
[404370009,1770081696078,-10000.01,8.774e-05,2]
[404370010,1770081721553,300.0,8.773e-05,2]
[404370011,1770081724362,500.0,8.674e-05,2]
[404370012,1770081724755,500.0,8.674e-05,2]
[404370013,1770081725237,500.0,8.674e-05,2]
[404370014,1770081725742,500.0,8.674e-05,2]
[404370015,1770081726251,500.0,8.674e-05,2]
[404370016,1770081726926,36.359,8.674e-05,2]
[404370017,1770081726949,463.641,8.674e-05,2]
[404370018,1770081727199,500.0,8.674e-05,2]
[404370019,1770081727690,500.0,8.674e-05,2]
[404370020,1770081728247,500.0,8.674e-05,2]
[404370021,1770081729430,500.0,8.674e-05,2]
[404370022,1770081729960,500.0,8.674e-05,2]
[404370023,1770081730486,500.0,8.674e-05,2]
[404370024,1770081731008,500.0,8.674e-05,2]
[404370025,1770081731534,500.0,8.674e-05,2]
[404370026,1770081732460,500.0,8.674e-05,2]
[404370027,1770081732961,500.0,8.674e-05,2]
[404370028,1770081733518,500.0,8.674e-05,2]
[404370029,1770081734534,500.0,8.674e-05,2]
[404370030,1770081734994,500.0,8.674e-05,2]
[404370031,1770081735697,0.01,8.674e-05,2]
[404370032,1770081735720,499.99,8.674e-05,2]
[404370033,1770081736180,500.0,8.674e-05,2]
[404370034,1770081736647,500.0,8.674e-05,2]
[404370035,1770081737037,500.0,8.674e-05,2]
[404370036,1770081737652,500.0,8.674e-05,2]
[404370037,1770081738166,500.0,8.674e-05,2]
[404370038,1770081738552,174.04924007,8.674e-05,2]
[404370040,1770081775537,500.0,8.606e-05,2]
[404370041,1770081781559,300.0,8.773e-05,2]
[404370042,1770081787701,1025.97075993,7.945e-05,2]
[404370043,1770081787725,978.24296107,7.945e-05,2]
[404370044,1770081788546,500.0,8.747e-05,2]
[404370045,1770081788936,150.0,8.747e-05,2]
[404370046,1770081803367,394.84,8.604e-05,2]
[404370047,1770081819161,500.0,8.773e-05,2]
[404370048,1770081819208,386.89420172,8.773e-05,2]
[404370049,1770081819254,246.91661272,8.773e-05,2]
[404370050,1770081819832,587.03954969,8.773e-05,2]
[404370051,1770081819932,500.0,8.773e-05,2]
[404370052,1770081819976,500.0,8.773e-05,2]
[404370053,1770081820044,256.0766748,8.773e-05,2]
[404370054,1770081820065,243.9233252,8.773e-05,2]
[404370055,1770081822464,500.0,8.773e-05,2]
[404370056,1770081822501,500.0,8.773e-05,2]
[404370057,1770081822537,500.0,8.773e-05,2]
[404370058,1770081822589,500.0,8.773e-05,2]
[404370059,1770081822650,500.0,8.773e-05,2]
[404370060,1770081822699,500.0,8.773e-05,2]
[404370061,1770081822737,500.0,8.773e-05,2]
[404370062,1770081822777,500.0,8.773e-05,2]
[404370063,1770081822816,500.0,8.773e-05,2]
[404370064,1770081822856,256.0866748,8.773e-05,2]
[404370065,1770081822880,243.9133252,8.773e-05,2]
[404370066,1770081822920,500.0,8.773e-05,2]
[404370067,1770081822963,500.0,8.773e-05,2]
[404370068,1770081823001,500.0,8.773e-05,2]
[404370069,1770081823043,500.0,8.773e-05,2]
[404370070,1770081823080,500.0,8.773e-05,2]
[404370071,1770081823117,500.0,8.773e-05,2]
[404370072,1770081823157,500.0,8.773e-05,2]
[404370073,1770081823195,500.0,8.773e-05,2]
[404370074,1770081823233,500.0,8.773e-05,2]
[404370075,1770081823270,256.0966748,8.773e-05,2]
[404370076,1770081823293,243.9033252,8.773e-05,2]
[404370077,1770081823336,500.0,8.773e-05,2]
[404370078,1770081823373,500.0,8.773e-05,2]
[404370079,1770081823411,500.0,8.773e-05,2]
[404370080,1770081823454,500.0,8.773e-05,2]
[404370081,1770081823490,500.0,8.773e-05,2]
[404370082,1770081823527,500.0,8.773e-05,2]
[404370083,1770081823563,500.0,8.773e-05,2]
[404370084,1770081823599,500.0,8.773e-05,2]
[404370085,1770081823635,500.0,8.773e-05,2]
[404370086,1770081823677,256.1066748,8.773e-05,2]
[404370087,1770081823705,243.8933252,8.773e-05,2]
[404370088,1770081823745,500.0,8.773e-05,2]
[404370089,1770081823789,500.0,8.773e-05,2]
[404370090,1770081823826,500.0,8.773e-05,2]
[404370091,1770081823864,500.0,8.773e-05,2]
[404370092,1770081823906,500.0,8.773e-05,2]
[404370093,1770081823944,500.0,8.773e-05,2]
[404370094,1770081823983,500.0,8.773e-05,2]
[404370095,1770081824022,500.0,8.773e-05,2]
[404370096,1770081824063,500.0,8.773e-05,2]
[404370097,1770081824106,256.1166748,8.773e-05,2]
[404370098,1770081824129,243.8833252,8.773e-05,2]
[404370099,1770081824168,500.0,8.773e-05,2]
[404370100,1770081824237,500.0,8.773e-05,2]
[404370101,1770081824284,500.0,8.773e-05,2]
[404370102,1770081824324,500.0,8.773e-05,2]
[404370103,1770081824363,500.0,8.773e-05,2]
[404370104,1770081824421,500.0,8.773e-05,2]
[404370105,1770081824461,500.0,8.773e-05,2]
[404370106,1770081824503,500.0,8.773e-05,2]
[404370107,1770081824542,500.0,8.773e-05,2]
[404370108,1770081824583,500.0,8.773e-05,2]
[404370109,1770081824620,500.0,8.773e-05,2]
[404370110,1770081824663,500.0,8.773e-05,2]
[404370111,1770081824709,500.0,8.773e-05,2]
[404370112,1770081824787,500.0,8.773e-05,2]
[404370113,1770081824825,500.0,8.773e-05,2]
[404370114,1770081824864,500.0,8.773e-05,2]
[404370115,1770081824902,500.0,8.773e-05,2]
[404370116,1770081824955,500.0,8.773e-05,2]
[404370117,1770081841535,300.0,8.773e-05,2]
[404370118,1770081842223,150.0,8.773e-05,2]
[404370119,1770081842823,300.0,8.773e-05,2]
[404370120,1770081901823,6.1266748,8.773e-05,2]
[404370121,1770081901850,1193.8733252,8.773e-05,2]
[404370122,1770081901887,300.0,8.773e-05,2]
[404370123,1770081960177,251.4,8.7e-05,2]
[404370124,1770081967356,2585.94,8.67e-05,2]
[404370125,1770081975155,10149.30415743,0.000209,30]
[404370126,1770082002854,150.0,8.747e-05,2]
[404370127,1770082003201,150.0,8.747e-05,2]
[404370128,1770082022012,150.0,8.773e-05,2]
[404370129,1770082023003,150.0,0.0001009,5]
[404370130,1770082023088,300.0,8.773e-05,2]
[404370131,1770082032898,500.0,8.773e-05,2]
[404370132,1770082032950,500.0,8.773e-05,2]
[404370133,1770082033007,500.0,8.773e-05,2]
[404370134,1770082033051,500.0,8.773e-05,2]
[404370135,1770082033093,500.0,8.773e-05,2]
[404370136,1770082033140,500.0,8.773e-05,2]
[404370137,1770082033199,500.0,8.773e-05,2]
[404370138,1770082033258,500.0,8.773e-05,2]
[404370139,1770082033300,500.0,8.773e-05,2]
[404370140,1770082033354,418.7966748,8.773e-05,2]
[404370141,1770082033381,81.2033252,8.773e-05,2]
[404370142,1770082033443,500.0,8.773e-05,2]
[404370143,1770082033490,500.0,8.773e-05,2]
[404370144,1770082033549,500.0,8.773e-05,2]
[404370145,1770082033610,500.0,8.773e-05,2]
[404370146,1770082033653,500.0,8.773e-05,2]
[404370147,1770082033713,500.0,8.773e-05,2]
[404370148,1770082033766,500.0,8.773e-05,2]
[404370149,1770082033864,500.0,8.773e-05,2]
[404370150,1770082033913,500.0,8.773e-05,2]
[404370151,1770082033957,500.0,8.773e-05,2]
[404370152,1770082034026,500.0,8.773e-05,2]
[404370153,1770082034087,500.0,8.773e-05,2]
[404370154,1770082034146,500.0,8.773e-05,2]
[404370155,1770082034207,500.0,8.773e-05,2]
[404370156,1770082034261,500.0,8.773e-05,2]
[404370157,1770082034301,500.0,8.773e-05,2]
[404370158,1770082034343,500.0,8.773e-05,2]
[404370159,1770082034383,500.0,8.773e-05,2]
[404370160,1770082034436,500.0,8.773e-05,2]
[404370161,1770082034844,418.8066748,8.773e-05,2]
[404370162,1770082034870,81.1933252,8.773e-05,2]
[404370163,1770082034926,500.0,8.773e-05,2]
[404370164,1770082034970,500.0,8.773e-05,2]
[404370165,1770082035033,500.0,8.773e-05,2]
[404370166,1770082045175,500.0,8.773e-05,2]
[404370167,1770082045216,500.0,8.773e-05,2]
[404370168,1770082045258,500.0,8.773e-05,2]
[404370169,1770082045427,500.0,8.773e-05,2]
[404370170,1770082045469,500.0,8.773e-05,2]
[404370171,1770082045547,500.0,8.773e-05,2]
[404370172,1770082045607,500.0,8.773e-05,2]
[404370173,1770082045653,500.0,8.773e-05,2]
[404370174,1770082045689,2500.0,8.674e-05,2]
[404370175,1770082045815,338.61887327,8.773e-05,2]
[404370176,1770082069164,1580.19780153,8.764e-05,2]
[404370177,1770082069188,10000.01,8.764e-05,2]
[404370178,1770082069210,10000.01,8.764e-05,2]
[404370179,1770082069231,8512.32296412,8.764e-05,2]
[404370180,1770082081614,300.0,8.773e-05,2]
[404370181,1770082085218,150.80525673,0.00010089,5]
[404370187,1770082124229,166.66,8.625e-05,2]
[404370188,1770082170463,-1021.02703588,8.774e-05,2]
[404370189,1770082170496,-10000.01,8.774e-05,2]
[404370190,1770082170609,-10000.01,8.774e-05,2]
[404370191,1770082171431,-3036.369,8.774e-05,2]
[404370192,1770082171810,-5000.01,8.774e-05,2]
[404370193,1770082171884,-5000.01,8.774e-05,2]
[404370194,1770082171897,-5000.01,8.774e-05,2]
[404370195,1770082171916,-5000.01,8.774e-05,2]
[404370196,1770082171968,-5000.01,8.774e-05,2]
[404370197,1770082174118,-10000.01,8.674e-05,2]
[404370198,1770082174214,-10000.01,8.674e-05,2]
[404370199,1770082174352,-10000.01,8.674e-05,2]
[404370200,1770082174449,-10000.01,8.674e-05,2]
[404370201,1770082174572,-10000.01,8.674e-05,2]
[404370202,1770082174673,-10000.01,8.674e-05,2]
[404370203,1770082174915,-228.97051473,8.674e-05,2]
[404370204,1770082174958,-10000.01,8.674e-05,2]
[404370205,1770082176221,-397.01233117,8.674e-05,2]
[404370206,1770082179006,-299.49061193,8.674e-05,2]
[404370207,1770082182321,-302.0,8.674e-05,2]
[404370208,1770082184437,-1085.20712032,8.674e-05,2]
[404370209,1770082185906,-302.0,8.674e-05,2]
[404370210,1770082187523,-500.0,8.674e-05,2]
[404370211,1770082189794,-500.0,8.674e-05,2]
[404370212,1770082191357,-302.0,8.674e-05,2]
[404370213,1770082193630,-822.01390266,8.674e-05,2]
[404370214,1770082196313,-500.0,8.674e-05,2]
[404370215,1770082199087,-250.0,8.674e-05,2]
[404370217,1770082201671,150.0,8.673e-05,2]
[404370218,1770082201716,150.0,8.673e-05,2]
[404370219,1770082201829,1200.0,8.673e-05,2]
[404370220,1770082202446,-651.0,8.674e-05,2]
[404370222,1770082204610,-245.11593115,8.674e-05,2]
[404370223,1770082206221,-439.10829603,8.674e-05,2]
[404370225,1770082209290,-302.0,8.674e-05,2]
[404370226,1770082209427,849.31,8.193e-05,2]
[404370227,1770082211604,151.0,8.671e-05,2]
[404370228,1770082211988,151.0,8.671e-05,2]
[404370229,1770082212026,-500.0,8.674e-05,2]
[404370230,1770082215203,-350.50938807,8.674e-05,2]
[404370231,1770082217539,-560.22087833,8.674e-05,2]
[404370232,1770082219747,-450.19080258,8.674e-05,2]
[404370234,1770082221923,-1376.4768139,8.674e-05,2]
[404370235,1770082223925,-309.42108336,8.674e-05,2]
[404370236,1770082225941,-500.0,8.674e-05,2]
[404370237,1770082228129,-177.71399708,8.674e-05,2]
[404370238,1770082229697,-195.17,8.674e-05,2]
[404370239,1770082231396,-547.34,8.674e-05,2]
[404370240,1770082231407,-581.45670219,8.674e-05,2]
[404370246,1770082231709,-1601.98415386,8.674e-05,2]
[404370247,1770082231723,-2797890.90205577,8.674e-05,2]
[404370249,1770082231735,-44922.87153389,8.674e-05,2]
[404370250,1770082231748,-84241.62605789,8.674e-05,2]
[404370251,1770082231759,-54736.78463818,8.674e-05,2]
[404370252,1770082232457,152.09620819,8.647e-05,2]
[404370253,1770082233613,-2685.85822154,8.674e-05,2]
[404370254,1770082235253,-300.0,8.674e-05,2]
[404370257,1770082237514,-443.21634454,8.674e-05,2]
[404370258,1770082237551,-3985.55298167,8.674e-05,2]
[404370259,1770082237593,-426516.71563916,8.674e-05,2]
[404370260,1770082237604,-2500.0,8.674e-05,2]
[404370261,1770082237615,-60615.8827,8.674e-05,2]
[404370262,1770082237626,-302.51445876,8.674e-05,2]
[404370263,1770082237637,-222.0,8.674e-05,2]
[404370264,1770082237647,-269.2843,8.774e-05,2]
[404370265,1770082237657,-237.2858,8.774e-05,2]
[404370266,1770082237667,-250.0,8.774e-05,2]
[404370267,1770082237678,-500.0,8.774e-05,2]
[404370268,1770082237688,-796.91678571,8.774e-05,2]
[404370269,1770082237699,-250.0,8.78e-05,2]
[404370270,1770082237708,-151.0,8.87e-05,2]
[404370271,1770082237717,-151.0,8.87e-05,2]
[404370272,1770082237727,-151.0,8.871e-05,2]
[404370273,1770082237736,-25002.2461835,8.873e-05,2]
[404370274,1770082237746,-3004498.6889166,8.873e-05,2]
[404370275,1770082237755,-33288.2505,8.874e-05,2]
[404370276,1770082237765,-299.99,8.874e-05,2]
[404370278,1770082237776,-1694.09,8.874e-05,2]
[404370280,1770082237786,-262110.04,8.874e-05,2]
[404370281,1770082237796,-166.66,8.91e-05,2]
[404370282,1770082237806,-398.7096011,9.051e-05,2]
[404370283,1770082237816,-9999.99,9.051e-05,2]